{"text_format":"1","workbook":"xlsx","n_sheets":2,"sheets":["AGENDA","PROCEDIMENTOS"],"not_rendered":{"charts":0,"images":0,"macros":1,"external_links":1,"defined_names":4,"comments":0,"pivot_tables":0},"unopened":[],"bounds":{"document_bytes":16777216,"sheet_cells":100000,"rows_first":2000,"rows_last":500,"rows_between":2000,"halvings":0,"cell_chars":16384,"cell_head_chars":4096},"cells_cut":0,"cells_raw":0,"read":"whole","date_system":"1900"}

{"sheet":"AGENDA","index":0,"n_rows":196,"n_cols":9,"rows_kept":196,"cut":false,"hidden":false,"merged":[[0,10,1,10],[19,1,19,2],[0,1,1,3],[0,4,1,6],[0,7,1,7],[0,8,1,8],[0,9,1,9]]}
[]
[]
[]
[]
[]
[]
[]
[]
[]
[]
[]
[]
[]
[]
[]
[]
[]
[]
[]
[null,"Agenda",null,null,"Qtde",{"$f":"SUMPRODUCT(--(TB_Agenda[Registro]<>\"\"))-SUMPRODUCT(--(TB_Agenda[Registro]=\"-\"))","v":88}]
[null,"Registro","ID Atendimento","Data","Dia da Semana","Horário","Status","Col. Auxiliar"]
[null,88,"YS.8497.0212/2021","2021-12-02","Quinta-Feira",1430,"OK"]
[null,87,"ML.3898.0112/2021","2021-12-01","Quarta-Feira",1400]
[null,86,"MO.0054.2911/2021","2021-11-29","Segunda-Feira",1000,"OK"]
[null,85,"YS.8497.1811/2021","2021-11-18","Quinta-Feira",1430,"OK"]
[null,84,"PG.0894.1611/2021","2021-11-16","Terça-Feira",1100,"OK"]
[null,83,"GM.3106.1211/2021","2021-11-12","Sexta-Feira",1600,"OK"]
[null,82,"MM.0476.1111/2021","2021-11-11","Quinta-Feira",1630,"OK"]
[null,81,"YS.8497.1111/2021","2021-11-11","Quinta-Feira",1400,"OK"]
[null,80,"YS.8497.1011/2021","2021-11-10","Quarta-Feira",1600,"OK"]
[null,79,"VN.4806.1609/2021","2021-09-16","Quinta-Feira",1700,"OK"]
[null,78,"MM.0476.1609/2021","2021-09-16","Quinta-Feira",1600,"OK"]
[null,77,"BS.7060.1609/2021","2021-09-16","Quinta-Feira",1400,"OK"]
[null,76,"","2021-09-15","Quarta-Feira",1600,"OK"]
[null,75,"SL.7266.1409/2021","2021-09-14","Terça-Feira",1030,"OK"]
[null,74,"GM.3106.1309/2021","2021-09-13","Segunda-Feira",1400,"OK"]
[null,73,"SL.6857.0309/2021","2021-09-03","Sexta-Feira",1430,"OK"]
[null,72,"MP.6687.3108/2021","2021-08-31","Terça-Feira",940,"OK"]
[null,71,"BH.5210.2608/2021","2021-08-26","Quinta-Feira",1400,"OK"]
[null,70,"MP.6687.2508/2021","2021-08-25","Quarta-Feira",1700,"OK"]
[null,69,"MO.0054.2508/2021","2021-08-25","Quarta-Feira",1500,"Falta"]
[null,68,"BH.5210.2508/2021","2021-08-25","Quarta-Feira",1400,"Falta"]
[null,67,"MO.0054.2008/2021","2021-08-20","Sexta-Feira",1500,"Desmarcado(a)"]
[null,66,"VN.4806.1808/2021","2021-08-18","Quarta-Feira",1600,"OK"]
[null,65,"ES.9373.1708/2021","2021-08-17","Terça-Feira",900,"OK"]
[null,64,"VN.4806.1108/2021","2021-08-11","Quarta-Feira",null,"OK"]
[null,63,"GM.3106.1108/2021","2021-08-11","Quarta-Feira",1400,"OK"]
[null,62,"LM.3608.0508/2021","2021-08-05","Quinta-Feira",1430,"OK"]
[null,61,"DS.1058.2807/2021","2021-07-28","Quarta-Feira",1700,"OK"]
[null,60,"MO.0054.2807/2021","2021-07-28","Quarta-Feira",1500,"OK"]
[null,59,"BH.5210.2807/2021","2021-07-28","Quarta-Feira",1400,"OK"]
[null,58,"ML.3898.1607/2021","2021-07-16","Sexta-Feira",1430,"OK"]
[null,57,"EL.9099.1607/2021","2021-07-16","Sexta-Feira",1400,"Falta"]
[null,56,"MM.4966.1607/2021","2021-07-16","Sexta-Feira",1000,"OK"]
[null,55,"ML.3898.1407/2021","2021-07-14","Quarta-Feira",1600,"OK"]
[null,54,"DS.1058.1407/2021","2021-07-14","Quarta-Feira",1400,"OK"]
[null,53,"ML.3898.0907/2021","2021-07-09","Sexta-Feira",1500,"OK"]
[null,52,"MN.3086.0907/2021","2021-07-09","Sexta-Feira",930,"OK"]
[null,51,"EL.9099.0807/2021","2021-07-08","Quinta-Feira",1430,"OK"]
[null,50,"MO.0054.0707/2021","2021-07-07","Quarta-Feira",1600,"-"]
[null,49,"GM.3106.0707/2021","2021-07-07","Quarta-Feira",1400,"OK"]
[null,48,"BL.1006.0607/2021","2021-07-06","Terça-Feira",900,"OK"]
[null,47,"MN.3086.0207/2021","2021-07-02","Sexta-Feira",900,"OK"]
[null,46,"VN.4806.0107/2021","2021-07-01","Quinta-Feira",1430,"OK"]
[null,45,"PS.8772.2106/2021","2021-06-21","Segunda-Feira",900,"OK"]
[null,44,"PS.8772.1506/2021","2021-06-15","Terça-Feira",900,"OK"]
[null,43,"GM.3106.0906/2021","2021-06-09","Quarta-Feira",1400,"OK"]
[null,42,"MO.0054.0206/2021","2021-06-02","Quarta-Feira",1500,"OK"]
[null,41,"GL.5007.2605/2021","2021-05-26","Quarta-Feira",1700,"OK"]
[null,40,"GL.5007.1905/2021","2021-05-19","Quarta-Feira",1500,"OK"]
[null,39,"SP.9511.1905/2021","2021-05-19","Quarta-Feira",1430,"OK"]
[null,38,"CS.0395.1805/2021","2021-05-18","Terça-Feira",900,"OK"]
[null,37,"BL.1006.1205/2021","2021-05-12","Quarta-Feira",1700,"OK"]
[null,36,"GM.3106.1205/2021","2021-05-12","Quarta-Feira",1430,"OK"]
[null,35,"CS.0395.1105/2021","2021-05-11","Terça-Feira",900,"OK"]
[null,34,"AC.9757.0605/2021","2021-05-06","Quinta-Feira",1530,"OK"]
[null,33,"MM.4966.0505/2021","2021-05-05","Quarta-Feira",null,"OK"]
[null,32,"BL.1006.0505/2021","2021-05-05","Quarta-Feira",1430,"OK"]
[null,31,"YA.1796.0505/2021","2021-05-05","Quarta-Feira",1400,"OK"]
[null,30,"BH.5210.2804/2021","2021-04-28","Quarta-Feira",1430,"OK"]
[null,29,"YA.1796.2604/2021","2021-04-26","Segunda-Feira",940,"OK"]
[null,28,"MO.0054.2004/2021","2021-04-20","Terça-Feira",1000,"OK"]
[null,27,"CS.0395.2004/2021","2021-04-20","Terça-Feira",930,"OK"]
[null,26,"MM.4966.1904/2021","2021-04-19","Segunda-Feira",1000,"OK"]
[null,25,"YA.1796.1904/2021","2021-04-19","Segunda-Feira",930,"OK"]
[null,24,"JM.2697.1404/2021","2021-04-14","Quarta-Feira",1600,"OK"]
[null,23,"GM.3106.1404/2021","2021-04-14","Quarta-Feira",1400,"OK"]
[null,22,"CS.0395.1304/2021","2021-04-13","Terça-Feira",1400,"OK"]
[null,21,"SL.6857.1204/2021","2021-04-12","Segunda-Feira",1430,"OK"]
[null,20,"AS.1804.0704/2021","2021-04-07","Quarta-Feira",1430,"OK"]
[null,19,"CS.0395.2603/2021","2021-03-26","Sexta-Feira",930,"OK"]
[null,18,"GM.3106.1003/2021","2021-03-10","Quarta-Feira",1400,"-"]
[null,17,"MO.0054.0903/2021","2021-03-09","Terça-Feira",1500,"OK"]
[null,16,"MM.4966.0903/2021","2021-03-09","Terça-Feira",1400,"OK"]
[null,15,"MO.0054.0503/2021","2021-03-05","Sexta-Feira",1400,"OK"]
[null,14,"JA.9570.2602/2021","2021-02-26","Sexta-Feira",900,"OK"]
[null,13,"BM.0005.2302/2021","2021-02-23","Terça-Feira",1430,"OK"]
[null,12,"CP.5349.1702/2021","2021-02-17","Quarta-Feira",1600,"OK"]
[null,11,"BM.0005.1702/2021","2021-02-17","Quarta-Feira",1400,"OK"]
[null,10,"CP.5349.1202/2021","2021-02-12","Sexta-Feira",null,"OK"]
[null,9,"BL.1006.1002/2021","2021-02-10","Quarta-Feira",1600,"OK"]
[null,8,"BM.0005.1002/2021","2021-02-10","Quarta-Feira",1530,"OK"]
[null,7,"GM.3106.1002/2021","2021-02-10","Quarta-Feira",1430,"OK"]
[null,6,"ML.3898.1002/2021","2021-02-10","Quarta-Feira",1400,"OK"]
[null,5,"ML.3898.0302/2021","2021-02-03","Quarta-Feira",1430,"OK"]
[null,4,"MN.6357.1801/2021","2021-01-18","Segunda-Feira",1500,"OK"]
[null,3,"MO.0054.1801/2021","2021-01-18","Segunda-Feira",1100,"Falta"]
[null,2,"GM.3106.1201/2021","2021-01-12","Terça-Feira",1430,"OK"]
[null,1,"MO.0054.1101/2021","2021-01-11","Segunda-Feira",1500,"OK"]
[]
[null,null,null,null,null,null,null,null,35838]
[null,null,null,null,null,null,null,null,35580]
[null,null,null,null,null,null,null,null,34526]
[null,null,null,null,null,null,null,null,38980]
[null,null,null,null,null,null,null,null,27889]
[null,null,null,null,null,null,null,null,35580]
[null,null,null,null,null,null,null,null,35580]
[null,null,null,null,null,null,null,null,38911]
[null,null,null,null,null,null,null,null,27889]
[null,null,null,null,null,null,null,null,22053]
[null,null,null,null,null,null,null,null,39183]
[null,null,null,null,null,null,null,null,24308]
[null,null,null,null,null,null,null,null,38980]
[null,null,null,null,null,null,null,null,21053]
[null,null,null,null,null,null,null,null,31976]
[null,null,null,null,null,null,null,null,40346]
[null,null,null,null,null,null,null,null,31976]
[null,null,null,null,null,null,null,null,19739]
[null,null,null,null,null,null,null,null,40346]
[null,null,null,null,null,null,null,null,19739]
[null,null,null,null,null,null,null,null,38911]
[null,null,null,null,null,null,null,null,26817]
[null,null,null,null,null,null,null,null,38911]
[null,null,null,null,null,null,null,null,38980]
[null,null,null,null,null,null,null,null,39685]
[null,null,null,null,null,null,null,null,21292]
[null,null,null,null,null,null,null,null,19739]
[null,null,null,null,null,null,null,null,40346]
[null,null,null,null,null,null,null,null,35838]
[null,null,null,null,null,null,null,null,36205]
[null,null,null,null,null,null,null,null,24221]
[null,null,null,null,null,null,null,null,35838]
[null,null,null,null,null,null,null,null,21292]
[null,null,null,null,null,null,null,null,35838]
[null,null,null,null,null,null,null,null,31622]
[null,null,null,null,null,null,null,null,36205]
[null,null,null,null,null,null,null,null,19739]
[null,null,null,null,null,null,null,null,38980]
[null,null,null,null,null,null,null,null,38823]
[null,null,null,null,null,null,null,null,31622]
[null,null,null,null,null,null,null,null,38911]
[null,null,null,null,null,null,null,null,26571]
[null,null,null,null,null,null,null,null,26571]
[null,null,null,null,null,null,null,null,38980]
[null,null,null,null,null,null,null,null,19739]
[null,null,null,null,null,null,null,null,39175]
[null,null,null,null,null,null,null,null,39175]
[null,null,null,null,null,null,null,null,40689]
[null,null,null,null,null,null,null,null,34898]
[null,null,null,null,null,null,null,null,38823]
[null,null,null,null,null,null,null,null,38980]
[null,null,null,null,null,null,null,null,34898]
[null,null,null,null,null,null,null,null,20833]
[null,null,null,null,null,null,null,null,24221]
[null,null,null,null,null,null,null,null,38823]
[null,null,null,null,null,null,null,null,35197]
[null,null,null,null,null,null,null,null,40346]
[null,null,null,null,null,null,null,null,35197]
[null,null,null,null,null,null,null,null,19739]
[null,null,null,null,null,null,null,null,34898]
[null,null,null,null,null,null,null,null,24221]
[null,null,null,null,null,null,null,null,35197]
[null,null,null,null,null,null,null,null,35604]
[null,null,null,null,null,null,null,null,38980]
[null,null,null,null,null,null,null,null,34898]
[null,null,null,null,null,null,null,null,21053]
[null,null,null,null,null,null,null,null,38192]
[null,null,null,null,null,null,null,null,34898]
[null,null,null,null,null,null,null,null,38980]
[null,null,null,null,null,null,null,null,19739]
[null,null,null,null,null,null,null,null,24221]
[null,null,null,null,null,null,null,null,19739]
[null,null,null,null,null,null,null,null,25736]
[null,null,null,null,null,null,null,null,"04/11/2005"]
[null,null,null,null,null,null,null,null,18004]
[null,null,null,null,null,null,null,null,"04/11/2005"]
[null,null,null,null,null,null,null,null,18004]
[null,null,null,null,null,null,null,null,38823]
[null,null,null,null,null,null,null,null,"04/11/2005"]
[null,null,null,null,null,null,null,null,38980]
[null,null,null,null,null,null,null,null,35838]
[null,null,null,null,null,null,null,null,35838]
[null,null,null,null,null,null,null,null,20965]
[null,null,null,null,null,null,null,null,19739]
[null,null,null,null,null,null,null,null,38980]
[null,null,null,null,null,null,null,null,19739]

{"sheet":"PROCEDIMENTOS","index":1,"n_rows":102,"n_cols":8,"rows_kept":102,"cut":false,"hidden":false,"merged":[[0,11,1,11],[0,12,1,12],[3,1,3,2],[19,1,19,2],[0,8,1,8],[0,9,1,9],[0,1,1,4],[0,5,1,6]]}
[]
[]
[]
[]
[]
[]
[]
[]
[]
[]
[]
[]
[]
[]
[]
[]
[]
[]
[]
[null,"Procedimentos",null,null,null,null,"Qtde",{"$f":"SUMPRODUCT(--(TB_Procedimentos[Registro]<>\"\"))-SUMPRODUCT(--(TB_Procedimentos[Registro]=\"-\"))","v":81}]
[null,"Registro","ID Atendimento","Data","Dia da Semana","Horário","Proced","Col. Auxiliar"]
[null,{"$f":"IFERROR(INDEX(TB_Agenda[Registro],MATCH(TB_Procedimentos[[#This Row],[ID Atendimento]],TB_Agenda[ID Atendimento],0)),\"-\")","v":86},"MO.0054.2911/2021",{"$f":"IFERROR(INDEX(TB_Agenda[Data],MATCH(TB_Procedimentos[[#This Row],[Registro]],TB_Agenda[Registro],0)),\"-\")","v":"2021-11-29"},{"$f":"IF(TB_Procedimentos[[#This Row],[Data]]=\"\",\"\",PROPER(TEXT(TB_Procedimentos[[#This Row],[Data]],\"DDDD\")))","v":"Segunda-Feira"},{"$f":"IFERROR(INDEX(TB_Agenda[Horário],MATCH(TB_Procedimentos[[#This Row],[Registro]],TB_Agenda[Registro],0)),\"-\")","v":1000},3]
[null,"86.01",null,null,{"$f":"IF(TB_Procedimentos[[#This Row],[Data]]=\"\",\"\",PROPER(TEXT(TB_Procedimentos[[#This Row],[Data]],\"DDDD\")))","v":""},{"$f":"IFERROR(INDEX(TB_Agenda[Horário],MATCH(TB_Procedimentos[[#This Row],[Registro]],TB_Agenda[Registro],0)),\"-\")","v":"-"},"P1"]
[null,"86.02",null,null,{"$f":"IF(TB_Procedimentos[[#This Row],[Data]]=\"\",\"\",PROPER(TEXT(TB_Procedimentos[[#This Row],[Data]],\"DDDD\")))","v":""},{"$f":"IFERROR(INDEX(TB_Agenda[Horário],MATCH(TB_Procedimentos[[#This Row],[Registro]],TB_Agenda[Registro],0)),\"-\")","v":"-"},"P2"]
[null,"86.03",null,null,{"$f":"IF(TB_Procedimentos[[#This Row],[Data]]=\"\",\"\",PROPER(TEXT(TB_Procedimentos[[#This Row],[Data]],\"DDDD\")))","v":""},{"$f":"IFERROR(INDEX(TB_Agenda[Horário],MATCH(TB_Procedimentos[[#This Row],[Registro]],TB_Agenda[Registro],0)),\"-\")","v":"-"},"P3"]
[null,{"$f":"IFERROR(INDEX(TB_Agenda[Registro],MATCH(TB_Procedimentos[[#This Row],[ID Atendimento]],TB_Agenda[ID Atendimento],0)),\"-\")","v":85},"YS.8497.1811/2021",{"$f":"IFERROR(INDEX(TB_Agenda[Data],MATCH(TB_Procedimentos[[#This Row],[Registro]],TB_Agenda[Registro],0)),\"-\")","v":"2021-11-18"},{"$f":"IF(TB_Procedimentos[[#This Row],[Data]]=\"\",\"\",PROPER(TEXT(TB_Procedimentos[[#This Row],[Data]],\"DDDD\")))","v":"Quinta-Feira"},{"$f":"IFERROR(INDEX(TB_Agenda[Horário],MATCH(TB_Procedimentos[[#This Row],[Registro]],TB_Agenda[Registro],0)),\"-\")","v":1430}]
[null,{"$f":"IFERROR(INDEX(TB_Agenda[Registro],MATCH(TB_Procedimentos[[#This Row],[ID Atendimento]],TB_Agenda[ID Atendimento],0)),\"-\")","v":84},"PG.0894.1611/2021",{"$f":"IFERROR(INDEX(TB_Agenda[Data],MATCH(TB_Procedimentos[[#This Row],[Registro]],TB_Agenda[Registro],0)),\"-\")","v":"2021-11-16"},{"$f":"IF(TB_Procedimentos[[#This Row],[Data]]=\"\",\"\",PROPER(TEXT(TB_Procedimentos[[#This Row],[Data]],\"DDDD\")))","v":"Terça-Feira"},{"$f":"IFERROR(INDEX(TB_Agenda[Horário],MATCH(TB_Procedimentos[[#This Row],[Registro]],TB_Agenda[Registro],0)),\"-\")","v":1100}]
[null,{"$f":"IFERROR(INDEX(TB_Agenda[Registro],MATCH(TB_Procedimentos[[#This Row],[ID Atendimento]],TB_Agenda[ID Atendimento],0)),\"-\")","v":83},"GM.3106.1211/2021",{"$f":"IFERROR(INDEX(TB_Agenda[Data],MATCH(TB_Procedimentos[[#This Row],[Registro]],TB_Agenda[Registro],0)),\"-\")","v":"2021-11-12"},{"$f":"IF(TB_Procedimentos[[#This Row],[Data]]=\"\",\"\",PROPER(TEXT(TB_Procedimentos[[#This Row],[Data]],\"DDDD\")))","v":"Sexta-Feira"},{"$f":"IFERROR(INDEX(TB_Agenda[Horário],MATCH(TB_Procedimentos[[#This Row],[Registro]],TB_Agenda[Registro],0)),\"-\")","v":1600}]
[null,{"$f":"IFERROR(INDEX(TB_Agenda[Registro],MATCH(TB_Procedimentos[[#This Row],[ID Atendimento]],TB_Agenda[ID Atendimento],0)),\"-\")","v":82},"MM.0476.1111/2021",{"$f":"IFERROR(INDEX(TB_Agenda[Data],MATCH(TB_Procedimentos[[#This Row],[Registro]],TB_Agenda[Registro],0)),\"-\")","v":"2021-11-11"},{"$f":"IF(TB_Procedimentos[[#This Row],[Data]]=\"\",\"\",PROPER(TEXT(TB_Procedimentos[[#This Row],[Data]],\"DDDD\")))","v":"Quinta-Feira"},{"$f":"IFERROR(INDEX(TB_Agenda[Horário],MATCH(TB_Procedimentos[[#This Row],[Registro]],TB_Agenda[Registro],0)),\"-\")","v":1630}]
[null,{"$f":"IFERROR(INDEX(TB_Agenda[Registro],MATCH(TB_Procedimentos[[#This Row],[ID Atendimento]],TB_Agenda[ID Atendimento],0)),\"-\")","v":81},"YS.8497.1111/2021",{"$f":"IFERROR(INDEX(TB_Agenda[Data],MATCH(TB_Procedimentos[[#This Row],[Registro]],TB_Agenda[Registro],0)),\"-\")","v":"2021-11-11"},{"$f":"IF(TB_Procedimentos[[#This Row],[Data]]=\"\",\"\",PROPER(TEXT(TB_Procedimentos[[#This Row],[Data]],\"DDDD\")))","v":"Quinta-Feira"},{"$f":"IFERROR(INDEX(TB_Agenda[Horário],MATCH(TB_Procedimentos[[#This Row],[Registro]],TB_Agenda[Registro],0)),\"-\")","v":1400}]
[null,{"$f":"IFERROR(INDEX(TB_Agenda[Registro],MATCH(TB_Procedimentos[[#This Row],[ID Atendimento]],TB_Agenda[ID Atendimento],0)),\"-\")","v":80},"YS.8497.1011/2021",{"$f":"IFERROR(INDEX(TB_Agenda[Data],MATCH(TB_Procedimentos[[#This Row],[Registro]],TB_Agenda[Registro],0)),\"-\")","v":"2021-11-10"},{"$f":"IF(TB_Procedimentos[[#This Row],[Data]]=\"\",\"\",PROPER(TEXT(TB_Procedimentos[[#This Row],[Data]],\"DDDD\")))","v":"Quarta-Feira"},{"$f":"IFERROR(INDEX(TB_Agenda[Horário],MATCH(TB_Procedimentos[[#This Row],[Registro]],TB_Agenda[Registro],0)),\"-\")","v":1600}]
[null,{"$f":"IFERROR(INDEX(TB_Agenda[Registro],MATCH(TB_Procedimentos[[#This Row],[ID Atendimento]],TB_Agenda[ID Atendimento],0)),\"-\")","v":79},"VN.4806.1609/2021",{"$f":"IFERROR(INDEX(TB_Agenda[Data],MATCH(TB_Procedimentos[[#This Row],[Registro]],TB_Agenda[Registro],0)),\"-\")","v":"2021-09-16"},{"$f":"IF(TB_Procedimentos[[#This Row],[Data]]=\"\",\"\",PROPER(TEXT(TB_Procedimentos[[#This Row],[Data]],\"DDDD\")))","v":"Quinta-Feira"},{"$f":"IFERROR(INDEX(TB_Agenda[Horário],MATCH(TB_Procedimentos[[#This Row],[Registro]],TB_Agenda[Registro],0)),\"-\")","v":1700}]
[null,{"$f":"IFERROR(INDEX(TB_Agenda[Registro],MATCH(TB_Procedimentos[[#This Row],[ID Atendimento]],TB_Agenda[ID Atendimento],0)),\"-\")","v":78},"MM.0476.1609/2021",{"$f":"IFERROR(INDEX(TB_Agenda[Data],MATCH(TB_Procedimentos[[#This Row],[Registro]],TB_Agenda[Registro],0)),\"-\")","v":"2021-09-16"},{"$f":"IF(TB_Procedimentos[[#This Row],[Data]]=\"\",\"\",PROPER(TEXT(TB_Procedimentos[[#This Row],[Data]],\"DDDD\")))","v":"Quinta-Feira"},{"$f":"IFERROR(INDEX(TB_Agenda[Horário],MATCH(TB_Procedimentos[[#This Row],[Registro]],TB_Agenda[Registro],0)),\"-\")","v":1600}]
[null,{"$f":"IFERROR(INDEX(TB_Agenda[Registro],MATCH(TB_Procedimentos[[#This Row],[ID Atendimento]],TB_Agenda[ID Atendimento],0)),\"-\")","v":77},"BS.7060.1609/2021",{"$f":"IFERROR(INDEX(TB_Agenda[Data],MATCH(TB_Procedimentos[[#This Row],[Registro]],TB_Agenda[Registro],0)),\"-\")","v":"2021-09-16"},{"$f":"IF(TB_Procedimentos[[#This Row],[Data]]=\"\",\"\",PROPER(TEXT(TB_Procedimentos[[#This Row],[Data]],\"DDDD\")))","v":"Quinta-Feira"},{"$f":"IFERROR(INDEX(TB_Agenda[Horário],MATCH(TB_Procedimentos[[#This Row],[Registro]],TB_Agenda[Registro],0)),\"-\")","v":1400}]
[null,{"$f":"IFERROR(INDEX(TB_Agenda[Registro],MATCH(TB_Procedimentos[[#This Row],[ID Atendimento]],TB_Agenda[ID Atendimento],0)),\"-\")","v":75},"SL.7266.1409/2021",{"$f":"IFERROR(INDEX(TB_Agenda[Data],MATCH(TB_Procedimentos[[#This Row],[Registro]],TB_Agenda[Registro],0)),\"-\")","v":"2021-09-14"},{"$f":"IF(TB_Procedimentos[[#This Row],[Data]]=\"\",\"\",PROPER(TEXT(TB_Procedimentos[[#This Row],[Data]],\"DDDD\")))","v":"Terça-Feira"},{"$f":"IFERROR(INDEX(TB_Agenda[Horário],MATCH(TB_Procedimentos[[#This Row],[Registro]],TB_Agenda[Registro],0)),\"-\")","v":1030}]
[null,{"$f":"IFERROR(INDEX(TB_Agenda[Registro],MATCH(TB_Procedimentos[[#This Row],[ID Atendimento]],TB_Agenda[ID Atendimento],0)),\"-\")","v":74},"GM.3106.1309/2021",{"$f":"IFERROR(INDEX(TB_Agenda[Data],MATCH(TB_Procedimentos[[#This Row],[Registro]],TB_Agenda[Registro],0)),\"-\")","v":"2021-09-13"},{"$f":"IF(TB_Procedimentos[[#This Row],[Data]]=\"\",\"\",PROPER(TEXT(TB_Procedimentos[[#This Row],[Data]],\"DDDD\")))","v":"Segunda-Feira"},{"$f":"IFERROR(INDEX(TB_Agenda[Horário],MATCH(TB_Procedimentos[[#This Row],[Registro]],TB_Agenda[Registro],0)),\"-\")","v":1400}]
[null,{"$f":"IFERROR(INDEX(TB_Agenda[Registro],MATCH(TB_Procedimentos[[#This Row],[ID Atendimento]],TB_Agenda[ID Atendimento],0)),\"-\")","v":73},"SL.6857.0309/2021",{"$f":"IFERROR(INDEX(TB_Agenda[Data],MATCH(TB_Procedimentos[[#This Row],[Registro]],TB_Agenda[Registro],0)),\"-\")","v":"2021-09-03"},{"$f":"IF(TB_Procedimentos[[#This Row],[Data]]=\"\",\"\",PROPER(TEXT(TB_Procedimentos[[#This Row],[Data]],\"DDDD\")))","v":"Sexta-Feira"},{"$f":"IFERROR(INDEX(TB_Agenda[Horário],MATCH(TB_Procedimentos[[#This Row],[Registro]],TB_Agenda[Registro],0)),\"-\")","v":1430}]
[null,{"$f":"IFERROR(INDEX(TB_Agenda[Registro],MATCH(TB_Procedimentos[[#This Row],[ID Atendimento]],TB_Agenda[ID Atendimento],0)),\"-\")","v":72},"MP.6687.3108/2021",{"$f":"IFERROR(INDEX(TB_Agenda[Data],MATCH(TB_Procedimentos[[#This Row],[Registro]],TB_Agenda[Registro],0)),\"-\")","v":"2021-08-31"},{"$f":"IF(TB_Procedimentos[[#This Row],[Data]]=\"\",\"\",PROPER(TEXT(TB_Procedimentos[[#This Row],[Data]],\"DDDD\")))","v":"Terça-Feira"},{"$f":"IFERROR(INDEX(TB_Agenda[Horário],MATCH(TB_Procedimentos[[#This Row],[Registro]],TB_Agenda[Registro],0)),\"-\")","v":940}]
[null,{"$f":"IFERROR(INDEX(TB_Agenda[Registro],MATCH(TB_Procedimentos[[#This Row],[ID Atendimento]],TB_Agenda[ID Atendimento],0)),\"-\")","v":71},"BH.5210.2608/2021",{"$f":"IFERROR(INDEX(TB_Agenda[Data],MATCH(TB_Procedimentos[[#This Row],[Registro]],TB_Agenda[Registro],0)),\"-\")","v":"2021-08-26"},{"$f":"IF(TB_Procedimentos[[#This Row],[Data]]=\"\",\"\",PROPER(TEXT(TB_Procedimentos[[#This Row],[Data]],\"DDDD\")))","v":"Quinta-Feira"},{"$f":"IFERROR(INDEX(TB_Agenda[Horário],MATCH(TB_Procedimentos[[#This Row],[Registro]],TB_Agenda[Registro],0)),\"-\")","v":1400}]
[null,{"$f":"IFERROR(INDEX(TB_Agenda[Registro],MATCH(TB_Procedimentos[[#This Row],[ID Atendimento]],TB_Agenda[ID Atendimento],0)),\"-\")","v":70},"MP.6687.2508/2021",{"$f":"IFERROR(INDEX(TB_Agenda[Data],MATCH(TB_Procedimentos[[#This Row],[Registro]],TB_Agenda[Registro],0)),\"-\")","v":"2021-08-25"},{"$f":"IF(TB_Procedimentos[[#This Row],[Data]]=\"\",\"\",PROPER(TEXT(TB_Procedimentos[[#This Row],[Data]],\"DDDD\")))","v":"Quarta-Feira"},{"$f":"IFERROR(INDEX(TB_Agenda[Horário],MATCH(TB_Procedimentos[[#This Row],[Registro]],TB_Agenda[Registro],0)),\"-\")","v":1700}]
[null,{"$f":"IFERROR(INDEX(TB_Agenda[Registro],MATCH(TB_Procedimentos[[#This Row],[ID Atendimento]],TB_Agenda[ID Atendimento],0)),\"-\")","v":66},"VN.4806.1808/2021",{"$f":"IFERROR(INDEX(TB_Agenda[Data],MATCH(TB_Procedimentos[[#This Row],[Registro]],TB_Agenda[Registro],0)),\"-\")","v":"2021-08-18"},{"$f":"IF(TB_Procedimentos[[#This Row],[Data]]=\"\",\"\",PROPER(TEXT(TB_Procedimentos[[#This Row],[Data]],\"DDDD\")))","v":"Quarta-Feira"},{"$f":"IFERROR(INDEX(TB_Agenda[Horário],MATCH(TB_Procedimentos[[#This Row],[Registro]],TB_Agenda[Registro],0)),\"-\")","v":1600}]
[null,{"$f":"IFERROR(INDEX(TB_Agenda[Registro],MATCH(TB_Procedimentos[[#This Row],[ID Atendimento]],TB_Agenda[ID Atendimento],0)),\"-\")","v":65},"ES.9373.1708/2021",{"$f":"IFERROR(INDEX(TB_Agenda[Data],MATCH(TB_Procedimentos[[#This Row],[Registro]],TB_Agenda[Registro],0)),\"-\")","v":"2021-08-17"},{"$f":"IF(TB_Procedimentos[[#This Row],[Data]]=\"\",\"\",PROPER(TEXT(TB_Procedimentos[[#This Row],[Data]],\"DDDD\")))","v":"Terça-Feira"},{"$f":"IFERROR(INDEX(TB_Agenda[Horário],MATCH(TB_Procedimentos[[#This Row],[Registro]],TB_Agenda[Registro],0)),\"-\")","v":900}]
[null,{"$f":"IFERROR(INDEX(TB_Agenda[Registro],MATCH(TB_Procedimentos[[#This Row],[ID Atendimento]],TB_Agenda[ID Atendimento],0)),\"-\")","v":64},"VN.4806.1108/2021",{"$f":"IFERROR(INDEX(TB_Agenda[Data],MATCH(TB_Procedimentos[[#This Row],[Registro]],TB_Agenda[Registro],0)),\"-\")","v":"2021-08-11"},{"$f":"IF(TB_Procedimentos[[#This Row],[Data]]=\"\",\"\",PROPER(TEXT(TB_Procedimentos[[#This Row],[Data]],\"DDDD\")))","v":"Quarta-Feira"},{"$f":"IFERROR(INDEX(TB_Agenda[Horário],MATCH(TB_Procedimentos[[#This Row],[Registro]],TB_Agenda[Registro],0)),\"-\")","v":0}]
[null,{"$f":"IFERROR(INDEX(TB_Agenda[Registro],MATCH(TB_Procedimentos[[#This Row],[ID Atendimento]],TB_Agenda[ID Atendimento],0)),\"-\")","v":63},"GM.3106.1108/2021",{"$f":"IFERROR(INDEX(TB_Agenda[Data],MATCH(TB_Procedimentos[[#This Row],[Registro]],TB_Agenda[Registro],0)),\"-\")","v":"2021-08-11"},{"$f":"IF(TB_Procedimentos[[#This Row],[Data]]=\"\",\"\",PROPER(TEXT(TB_Procedimentos[[#This Row],[Data]],\"DDDD\")))","v":"Quarta-Feira"},{"$f":"IFERROR(INDEX(TB_Agenda[Horário],MATCH(TB_Procedimentos[[#This Row],[Registro]],TB_Agenda[Registro],0)),\"-\")","v":1400}]
[null,{"$f":"IFERROR(INDEX(TB_Agenda[Registro],MATCH(TB_Procedimentos[[#This Row],[ID Atendimento]],TB_Agenda[ID Atendimento],0)),\"-\")","v":62},"LM.3608.0508/2021",{"$f":"IFERROR(INDEX(TB_Agenda[Data],MATCH(TB_Procedimentos[[#This Row],[Registro]],TB_Agenda[Registro],0)),\"-\")","v":"2021-08-05"},{"$f":"IF(TB_Procedimentos[[#This Row],[Data]]=\"\",\"\",PROPER(TEXT(TB_Procedimentos[[#This Row],[Data]],\"DDDD\")))","v":"Quinta-Feira"},{"$f":"IFERROR(INDEX(TB_Agenda[Horário],MATCH(TB_Procedimentos[[#This Row],[Registro]],TB_Agenda[Registro],0)),\"-\")","v":1430}]
[null,{"$f":"IFERROR(INDEX(TB_Agenda[Registro],MATCH(TB_Procedimentos[[#This Row],[ID Atendimento]],TB_Agenda[ID Atendimento],0)),\"-\")","v":61},"DS.1058.2807/2021",{"$f":"IFERROR(INDEX(TB_Agenda[Data],MATCH(TB_Procedimentos[[#This Row],[Registro]],TB_Agenda[Registro],0)),\"-\")","v":"2021-07-28"},{"$f":"IF(TB_Procedimentos[[#This Row],[Data]]=\"\",\"\",PROPER(TEXT(TB_Procedimentos[[#This Row],[Data]],\"DDDD\")))","v":"Quarta-Feira"},{"$f":"IFERROR(INDEX(TB_Agenda[Horário],MATCH(TB_Procedimentos[[#This Row],[Registro]],TB_Agenda[Registro],0)),\"-\")","v":1700}]
[null,{"$f":"IFERROR(INDEX(TB_Agenda[Registro],MATCH(TB_Procedimentos[[#This Row],[ID Atendimento]],TB_Agenda[ID Atendimento],0)),\"-\")","v":60},"MO.0054.2807/2021",{"$f":"IFERROR(INDEX(TB_Agenda[Data],MATCH(TB_Procedimentos[[#This Row],[Registro]],TB_Agenda[Registro],0)),\"-\")","v":"2021-07-28"},{"$f":"IF(TB_Procedimentos[[#This Row],[Data]]=\"\",\"\",PROPER(TEXT(TB_Procedimentos[[#This Row],[Data]],\"DDDD\")))","v":"Quarta-Feira"},{"$f":"IFERROR(INDEX(TB_Agenda[Horário],MATCH(TB_Procedimentos[[#This Row],[Registro]],TB_Agenda[Registro],0)),\"-\")","v":1500}]
[null,{"$f":"IFERROR(INDEX(TB_Agenda[Registro],MATCH(TB_Procedimentos[[#This Row],[ID Atendimento]],TB_Agenda[ID Atendimento],0)),\"-\")","v":59},"BH.5210.2807/2021",{"$f":"IFERROR(INDEX(TB_Agenda[Data],MATCH(TB_Procedimentos[[#This Row],[Registro]],TB_Agenda[Registro],0)),\"-\")","v":"2021-07-28"},{"$f":"IF(TB_Procedimentos[[#This Row],[Data]]=\"\",\"\",PROPER(TEXT(TB_Procedimentos[[#This Row],[Data]],\"DDDD\")))","v":"Quarta-Feira"},{"$f":"IFERROR(INDEX(TB_Agenda[Horário],MATCH(TB_Procedimentos[[#This Row],[Registro]],TB_Agenda[Registro],0)),\"-\")","v":1400}]
[null,{"$f":"IFERROR(INDEX(TB_Agenda[Registro],MATCH(TB_Procedimentos[[#This Row],[ID Atendimento]],TB_Agenda[ID Atendimento],0)),\"-\")","v":58},"ML.3898.1607/2021",{"$f":"IFERROR(INDEX(TB_Agenda[Data],MATCH(TB_Procedimentos[[#This Row],[Registro]],TB_Agenda[Registro],0)),\"-\")","v":"2021-07-16"},{"$f":"IF(TB_Procedimentos[[#This Row],[Data]]=\"\",\"\",PROPER(TEXT(TB_Procedimentos[[#This Row],[Data]],\"DDDD\")))","v":"Sexta-Feira"},{"$f":"IFERROR(INDEX(TB_Agenda[Horário],MATCH(TB_Procedimentos[[#This Row],[Registro]],TB_Agenda[Registro],0)),\"-\")","v":1430}]
[null,{"$f":"IFERROR(INDEX(TB_Agenda[Registro],MATCH(TB_Procedimentos[[#This Row],[ID Atendimento]],TB_Agenda[ID Atendimento],0)),\"-\")","v":56},"MM.4966.1607/2021",{"$f":"IFERROR(INDEX(TB_Agenda[Data],MATCH(TB_Procedimentos[[#This Row],[Registro]],TB_Agenda[Registro],0)),\"-\")","v":"2021-07-16"},{"$f":"IF(TB_Procedimentos[[#This Row],[Data]]=\"\",\"\",PROPER(TEXT(TB_Procedimentos[[#This Row],[Data]],\"DDDD\")))","v":"Sexta-Feira"},{"$f":"IFERROR(INDEX(TB_Agenda[Horário],MATCH(TB_Procedimentos[[#This Row],[Registro]],TB_Agenda[Registro],0)),\"-\")","v":1000}]
[null,{"$f":"IFERROR(INDEX(TB_Agenda[Registro],MATCH(TB_Procedimentos[[#This Row],[ID Atendimento]],TB_Agenda[ID Atendimento],0)),\"-\")","v":55},"ML.3898.1407/2021",{"$f":"IFERROR(INDEX(TB_Agenda[Data],MATCH(TB_Procedimentos[[#This Row],[Registro]],TB_Agenda[Registro],0)),\"-\")","v":"2021-07-14"},{"$f":"IF(TB_Procedimentos[[#This Row],[Data]]=\"\",\"\",PROPER(TEXT(TB_Procedimentos[[#This Row],[Data]],\"DDDD\")))","v":"Quarta-Feira"},{"$f":"IFERROR(INDEX(TB_Agenda[Horário],MATCH(TB_Procedimentos[[#This Row],[Registro]],TB_Agenda[Registro],0)),\"-\")","v":1600}]
[null,{"$f":"IFERROR(INDEX(TB_Agenda[Registro],MATCH(TB_Procedimentos[[#This Row],[ID Atendimento]],TB_Agenda[ID Atendimento],0)),\"-\")","v":54},"DS.1058.1407/2021",{"$f":"IFERROR(INDEX(TB_Agenda[Data],MATCH(TB_Procedimentos[[#This Row],[Registro]],TB_Agenda[Registro],0)),\"-\")","v":"2021-07-14"},{"$f":"IF(TB_Procedimentos[[#This Row],[Data]]=\"\",\"\",PROPER(TEXT(TB_Procedimentos[[#This Row],[Data]],\"DDDD\")))","v":"Quarta-Feira"},{"$f":"IFERROR(INDEX(TB_Agenda[Horário],MATCH(TB_Procedimentos[[#This Row],[Registro]],TB_Agenda[Registro],0)),\"-\")","v":1400}]
[null,{"$f":"IFERROR(INDEX(TB_Agenda[Registro],MATCH(TB_Procedimentos[[#This Row],[ID Atendimento]],TB_Agenda[ID Atendimento],0)),\"-\")","v":53},"ML.3898.0907/2021",{"$f":"IFERROR(INDEX(TB_Agenda[Data],MATCH(TB_Procedimentos[[#This Row],[Registro]],TB_Agenda[Registro],0)),\"-\")","v":"2021-07-09"},{"$f":"IF(TB_Procedimentos[[#This Row],[Data]]=\"\",\"\",PROPER(TEXT(TB_Procedimentos[[#This Row],[Data]],\"DDDD\")))","v":"Sexta-Feira"},{"$f":"IFERROR(INDEX(TB_Agenda[Horário],MATCH(TB_Procedimentos[[#This Row],[Registro]],TB_Agenda[Registro],0)),\"-\")","v":1500}]
[null,{"$f":"IFERROR(INDEX(TB_Agenda[Registro],MATCH(TB_Procedimentos[[#This Row],[ID Atendimento]],TB_Agenda[ID Atendimento],0)),\"-\")","v":52},"MN.3086.0907/2021",{"$f":"IFERROR(INDEX(TB_Agenda[Data],MATCH(TB_Procedimentos[[#This Row],[Registro]],TB_Agenda[Registro],0)),\"-\")","v":"2021-07-09"},{"$f":"IF(TB_Procedimentos[[#This Row],[Data]]=\"\",\"\",PROPER(TEXT(TB_Procedimentos[[#This Row],[Data]],\"DDDD\")))","v":"Sexta-Feira"},{"$f":"IFERROR(INDEX(TB_Agenda[Horário],MATCH(TB_Procedimentos[[#This Row],[Registro]],TB_Agenda[Registro],0)),\"-\")","v":930}]
[null,{"$f":"IFERROR(INDEX(TB_Agenda[Registro],MATCH(TB_Procedimentos[[#This Row],[ID Atendimento]],TB_Agenda[ID Atendimento],0)),\"-\")","v":51},"EL.9099.0807/2021",{"$f":"IFERROR(INDEX(TB_Agenda[Data],MATCH(TB_Procedimentos[[#This Row],[Registro]],TB_Agenda[Registro],0)),\"-\")","v":"2021-07-08"},{"$f":"IF(TB_Procedimentos[[#This Row],[Data]]=\"\",\"\",PROPER(TEXT(TB_Procedimentos[[#This Row],[Data]],\"DDDD\")))","v":"Quinta-Feira"},{"$f":"IFERROR(INDEX(TB_Agenda[Horário],MATCH(TB_Procedimentos[[#This Row],[Registro]],TB_Agenda[Registro],0)),\"-\")","v":1430}]
[null,{"$f":"IFERROR(INDEX(TB_Agenda[Registro],MATCH(TB_Procedimentos[[#This Row],[ID Atendimento]],TB_Agenda[ID Atendimento],0)),\"-\")","v":49},"GM.3106.0707/2021",{"$f":"IFERROR(INDEX(TB_Agenda[Data],MATCH(TB_Procedimentos[[#This Row],[Registro]],TB_Agenda[Registro],0)),\"-\")","v":"2021-07-07"},{"$f":"IF(TB_Procedimentos[[#This Row],[Data]]=\"\",\"\",PROPER(TEXT(TB_Procedimentos[[#This Row],[Data]],\"DDDD\")))","v":"Quarta-Feira"},{"$f":"IFERROR(INDEX(TB_Agenda[Horário],MATCH(TB_Procedimentos[[#This Row],[Registro]],TB_Agenda[Registro],0)),\"-\")","v":1400}]
[null,{"$f":"IFERROR(INDEX(TB_Agenda[Registro],MATCH(TB_Procedimentos[[#This Row],[ID Atendimento]],TB_Agenda[ID Atendimento],0)),\"-\")","v":48},"BL.1006.0607/2021",{"$f":"IFERROR(INDEX(TB_Agenda[Data],MATCH(TB_Procedimentos[[#This Row],[Registro]],TB_Agenda[Registro],0)),\"-\")","v":"2021-07-06"},{"$f":"IF(TB_Procedimentos[[#This Row],[Data]]=\"\",\"\",PROPER(TEXT(TB_Procedimentos[[#This Row],[Data]],\"DDDD\")))","v":"Terça-Feira"},{"$f":"IFERROR(INDEX(TB_Agenda[Horário],MATCH(TB_Procedimentos[[#This Row],[Registro]],TB_Agenda[Registro],0)),\"-\")","v":900}]
[null,{"$f":"IFERROR(INDEX(TB_Agenda[Registro],MATCH(TB_Procedimentos[[#This Row],[ID Atendimento]],TB_Agenda[ID Atendimento],0)),\"-\")","v":47},"MN.3086.0207/2021",{"$f":"IFERROR(INDEX(TB_Agenda[Data],MATCH(TB_Procedimentos[[#This Row],[Registro]],TB_Agenda[Registro],0)),\"-\")","v":"2021-07-02"},{"$f":"IF(TB_Procedimentos[[#This Row],[Data]]=\"\",\"\",PROPER(TEXT(TB_Procedimentos[[#This Row],[Data]],\"DDDD\")))","v":"Sexta-Feira"},{"$f":"IFERROR(INDEX(TB_Agenda[Horário],MATCH(TB_Procedimentos[[#This Row],[Registro]],TB_Agenda[Registro],0)),\"-\")","v":900}]
[null,{"$f":"IFERROR(INDEX(TB_Agenda[Registro],MATCH(TB_Procedimentos[[#This Row],[ID Atendimento]],TB_Agenda[ID Atendimento],0)),\"-\")","v":46},"VN.4806.0107/2021",{"$f":"IFERROR(INDEX(TB_Agenda[Data],MATCH(TB_Procedimentos[[#This Row],[Registro]],TB_Agenda[Registro],0)),\"-\")","v":"2021-07-01"},{"$f":"IF(TB_Procedimentos[[#This Row],[Data]]=\"\",\"\",PROPER(TEXT(TB_Procedimentos[[#This Row],[Data]],\"DDDD\")))","v":"Quinta-Feira"},{"$f":"IFERROR(INDEX(TB_Agenda[Horário],MATCH(TB_Procedimentos[[#This Row],[Registro]],TB_Agenda[Registro],0)),\"-\")","v":1430}]
[null,{"$f":"IFERROR(INDEX(TB_Agenda[Registro],MATCH(TB_Procedimentos[[#This Row],[ID Atendimento]],TB_Agenda[ID Atendimento],0)),\"-\")","v":45},"PS.8772.2106/2021",{"$f":"IFERROR(INDEX(TB_Agenda[Data],MATCH(TB_Procedimentos[[#This Row],[Registro]],TB_Agenda[Registro],0)),\"-\")","v":"2021-06-21"},{"$f":"IF(TB_Procedimentos[[#This Row],[Data]]=\"\",\"\",PROPER(TEXT(TB_Procedimentos[[#This Row],[Data]],\"DDDD\")))","v":"Segunda-Feira"},{"$f":"IFERROR(INDEX(TB_Agenda[Horário],MATCH(TB_Procedimentos[[#This Row],[Registro]],TB_Agenda[Registro],0)),\"-\")","v":900}]
[null,{"$f":"IFERROR(INDEX(TB_Agenda[Registro],MATCH(TB_Procedimentos[[#This Row],[ID Atendimento]],TB_Agenda[ID Atendimento],0)),\"-\")","v":44},"PS.8772.1506/2021",{"$f":"IFERROR(INDEX(TB_Agenda[Data],MATCH(TB_Procedimentos[[#This Row],[Registro]],TB_Agenda[Registro],0)),\"-\")","v":"2021-06-15"},{"$f":"IF(TB_Procedimentos[[#This Row],[Data]]=\"\",\"\",PROPER(TEXT(TB_Procedimentos[[#This Row],[Data]],\"DDDD\")))","v":"Terça-Feira"},{"$f":"IFERROR(INDEX(TB_Agenda[Horário],MATCH(TB_Procedimentos[[#This Row],[Registro]],TB_Agenda[Registro],0)),\"-\")","v":900}]
[null,{"$f":"IFERROR(INDEX(TB_Agenda[Registro],MATCH(TB_Procedimentos[[#This Row],[ID Atendimento]],TB_Agenda[ID Atendimento],0)),\"-\")","v":43},"GM.3106.0906/2021",{"$f":"IFERROR(INDEX(TB_Agenda[Data],MATCH(TB_Procedimentos[[#This Row],[Registro]],TB_Agenda[Registro],0)),\"-\")","v":"2021-06-09"},{"$f":"IF(TB_Procedimentos[[#This Row],[Data]]=\"\",\"\",PROPER(TEXT(TB_Procedimentos[[#This Row],[Data]],\"DDDD\")))","v":"Quarta-Feira"},{"$f":"IFERROR(INDEX(TB_Agenda[Horário],MATCH(TB_Procedimentos[[#This Row],[Registro]],TB_Agenda[Registro],0)),\"-\")","v":1400}]
[null,{"$f":"IFERROR(INDEX(TB_Agenda[Registro],MATCH(TB_Procedimentos[[#This Row],[ID Atendimento]],TB_Agenda[ID Atendimento],0)),\"-\")","v":42},"MO.0054.0206/2021",{"$f":"IFERROR(INDEX(TB_Agenda[Data],MATCH(TB_Procedimentos[[#This Row],[Registro]],TB_Agenda[Registro],0)),\"-\")","v":"2021-06-02"},{"$f":"IF(TB_Procedimentos[[#This Row],[Data]]=\"\",\"\",PROPER(TEXT(TB_Procedimentos[[#This Row],[Data]],\"DDDD\")))","v":"Quarta-Feira"},{"$f":"IFERROR(INDEX(TB_Agenda[Horário],MATCH(TB_Procedimentos[[#This Row],[Registro]],TB_Agenda[Registro],0)),\"-\")","v":1500}]
[null,{"$f":"IFERROR(INDEX(TB_Agenda[Registro],MATCH(TB_Procedimentos[[#This Row],[ID Atendimento]],TB_Agenda[ID Atendimento],0)),\"-\")","v":41},"GL.5007.2605/2021",{"$f":"IFERROR(INDEX(TB_Agenda[Data],MATCH(TB_Procedimentos[[#This Row],[Registro]],TB_Agenda[Registro],0)),\"-\")","v":"2021-05-26"},{"$f":"IF(TB_Procedimentos[[#This Row],[Data]]=\"\",\"\",PROPER(TEXT(TB_Procedimentos[[#This Row],[Data]],\"DDDD\")))","v":"Quarta-Feira"},{"$f":"IFERROR(INDEX(TB_Agenda[Horário],MATCH(TB_Procedimentos[[#This Row],[Registro]],TB_Agenda[Registro],0)),\"-\")","v":1700}]
[null,{"$f":"IFERROR(INDEX(TB_Agenda[Registro],MATCH(TB_Procedimentos[[#This Row],[ID Atendimento]],TB_Agenda[ID Atendimento],0)),\"-\")","v":40},"GL.5007.1905/2021",{"$f":"IFERROR(INDEX(TB_Agenda[Data],MATCH(TB_Procedimentos[[#This Row],[Registro]],TB_Agenda[Registro],0)),\"-\")","v":"2021-05-19"},{"$f":"IF(TB_Procedimentos[[#This Row],[Data]]=\"\",\"\",PROPER(TEXT(TB_Procedimentos[[#This Row],[Data]],\"DDDD\")))","v":"Quarta-Feira"},{"$f":"IFERROR(INDEX(TB_Agenda[Horário],MATCH(TB_Procedimentos[[#This Row],[Registro]],TB_Agenda[Registro],0)),\"-\")","v":1500}]
[null,{"$f":"IFERROR(INDEX(TB_Agenda[Registro],MATCH(TB_Procedimentos[[#This Row],[ID Atendimento]],TB_Agenda[ID Atendimento],0)),\"-\")","v":39},"SP.9511.1905/2021",{"$f":"IFERROR(INDEX(TB_Agenda[Data],MATCH(TB_Procedimentos[[#This Row],[Registro]],TB_Agenda[Registro],0)),\"-\")","v":"2021-05-19"},{"$f":"IF(TB_Procedimentos[[#This Row],[Data]]=\"\",\"\",PROPER(TEXT(TB_Procedimentos[[#This Row],[Data]],\"DDDD\")))","v":"Quarta-Feira"},{"$f":"IFERROR(INDEX(TB_Agenda[Horário],MATCH(TB_Procedimentos[[#This Row],[Registro]],TB_Agenda[Registro],0)),\"-\")","v":1430}]
[null,{"$f":"IFERROR(INDEX(TB_Agenda[Registro],MATCH(TB_Procedimentos[[#This Row],[ID Atendimento]],TB_Agenda[ID Atendimento],0)),\"-\")","v":38},"CS.0395.1805/2021",{"$f":"IFERROR(INDEX(TB_Agenda[Data],MATCH(TB_Procedimentos[[#This Row],[Registro]],TB_Agenda[Registro],0)),\"-\")","v":"2021-05-18"},{"$f":"IF(TB_Procedimentos[[#This Row],[Data]]=\"\",\"\",PROPER(TEXT(TB_Procedimentos[[#This Row],[Data]],\"DDDD\")))","v":"Terça-Feira"},{"$f":"IFERROR(INDEX(TB_Agenda[Horário],MATCH(TB_Procedimentos[[#This Row],[Registro]],TB_Agenda[Registro],0)),\"-\")","v":900}]
[null,{"$f":"IFERROR(INDEX(TB_Agenda[Registro],MATCH(TB_Procedimentos[[#This Row],[ID Atendimento]],TB_Agenda[ID Atendimento],0)),\"-\")","v":37},"BL.1006.1205/2021",{"$f":"IFERROR(INDEX(TB_Agenda[Data],MATCH(TB_Procedimentos[[#This Row],[Registro]],TB_Agenda[Registro],0)),\"-\")","v":"2021-05-12"},{"$f":"IF(TB_Procedimentos[[#This Row],[Data]]=\"\",\"\",PROPER(TEXT(TB_Procedimentos[[#This Row],[Data]],\"DDDD\")))","v":"Quarta-Feira"},{"$f":"IFERROR(INDEX(TB_Agenda[Horário],MATCH(TB_Procedimentos[[#This Row],[Registro]],TB_Agenda[Registro],0)),\"-\")","v":1700}]
[null,{"$f":"IFERROR(INDEX(TB_Agenda[Registro],MATCH(TB_Procedimentos[[#This Row],[ID Atendimento]],TB_Agenda[ID Atendimento],0)),\"-\")","v":36},"GM.3106.1205/2021",{"$f":"IFERROR(INDEX(TB_Agenda[Data],MATCH(TB_Procedimentos[[#This Row],[Registro]],TB_Agenda[Registro],0)),\"-\")","v":"2021-05-12"},{"$f":"IF(TB_Procedimentos[[#This Row],[Data]]=\"\",\"\",PROPER(TEXT(TB_Procedimentos[[#This Row],[Data]],\"DDDD\")))","v":"Quarta-Feira"},{"$f":"IFERROR(INDEX(TB_Agenda[Horário],MATCH(TB_Procedimentos[[#This Row],[Registro]],TB_Agenda[Registro],0)),\"-\")","v":1430}]
[null,{"$f":"IFERROR(INDEX(TB_Agenda[Registro],MATCH(TB_Procedimentos[[#This Row],[ID Atendimento]],TB_Agenda[ID Atendimento],0)),\"-\")","v":35},"CS.0395.1105/2021",{"$f":"IFERROR(INDEX(TB_Agenda[Data],MATCH(TB_Procedimentos[[#This Row],[Registro]],TB_Agenda[Registro],0)),\"-\")","v":"2021-05-11"},{"$f":"IF(TB_Procedimentos[[#This Row],[Data]]=\"\",\"\",PROPER(TEXT(TB_Procedimentos[[#This Row],[Data]],\"DDDD\")))","v":"Terça-Feira"},{"$f":"IFERROR(INDEX(TB_Agenda[Horário],MATCH(TB_Procedimentos[[#This Row],[Registro]],TB_Agenda[Registro],0)),\"-\")","v":900}]
[null,{"$f":"IFERROR(INDEX(TB_Agenda[Registro],MATCH(TB_Procedimentos[[#This Row],[ID Atendimento]],TB_Agenda[ID Atendimento],0)),\"-\")","v":34},"AC.9757.0605/2021",{"$f":"IFERROR(INDEX(TB_Agenda[Data],MATCH(TB_Procedimentos[[#This Row],[Registro]],TB_Agenda[Registro],0)),\"-\")","v":"2021-05-06"},{"$f":"IF(TB_Procedimentos[[#This Row],[Data]]=\"\",\"\",PROPER(TEXT(TB_Procedimentos[[#This Row],[Data]],\"DDDD\")))","v":"Quinta-Feira"},{"$f":"IFERROR(INDEX(TB_Agenda[Horário],MATCH(TB_Procedimentos[[#This Row],[Registro]],TB_Agenda[Registro],0)),\"-\")","v":1530}]
[null,{"$f":"IFERROR(INDEX(TB_Agenda[Registro],MATCH(TB_Procedimentos[[#This Row],[ID Atendimento]],TB_Agenda[ID Atendimento],0)),\"-\")","v":33},"MM.4966.0505/2021",{"$f":"IFERROR(INDEX(TB_Agenda[Data],MATCH(TB_Procedimentos[[#This Row],[Registro]],TB_Agenda[Registro],0)),\"-\")","v":"2021-05-05"},{"$f":"IF(TB_Procedimentos[[#This Row],[Data]]=\"\",\"\",PROPER(TEXT(TB_Procedimentos[[#This Row],[Data]],\"DDDD\")))","v":"Quarta-Feira"},{"$f":"IFERROR(INDEX(TB_Agenda[Horário],MATCH(TB_Procedimentos[[#This Row],[Registro]],TB_Agenda[Registro],0)),\"-\")","v":0}]
[null,{"$f":"IFERROR(INDEX(TB_Agenda[Registro],MATCH(TB_Procedimentos[[#This Row],[ID Atendimento]],TB_Agenda[ID Atendimento],0)),\"-\")","v":32},"BL.1006.0505/2021",{"$f":"IFERROR(INDEX(TB_Agenda[Data],MATCH(TB_Procedimentos[[#This Row],[Registro]],TB_Agenda[Registro],0)),\"-\")","v":"2021-05-05"},{"$f":"IF(TB_Procedimentos[[#This Row],[Data]]=\"\",\"\",PROPER(TEXT(TB_Procedimentos[[#This Row],[Data]],\"DDDD\")))","v":"Quarta-Feira"},{"$f":"IFERROR(INDEX(TB_Agenda[Horário],MATCH(TB_Procedimentos[[#This Row],[Registro]],TB_Agenda[Registro],0)),\"-\")","v":1430}]
[null,{"$f":"IFERROR(INDEX(TB_Agenda[Registro],MATCH(TB_Procedimentos[[#This Row],[ID Atendimento]],TB_Agenda[ID Atendimento],0)),\"-\")","v":31},"YA.1796.0505/2021",{"$f":"IFERROR(INDEX(TB_Agenda[Data],MATCH(TB_Procedimentos[[#This Row],[Registro]],TB_Agenda[Registro],0)),\"-\")","v":"2021-05-05"},{"$f":"IF(TB_Procedimentos[[#This Row],[Data]]=\"\",\"\",PROPER(TEXT(TB_Procedimentos[[#This Row],[Data]],\"DDDD\")))","v":"Quarta-Feira"},{"$f":"IFERROR(INDEX(TB_Agenda[Horário],MATCH(TB_Procedimentos[[#This Row],[Registro]],TB_Agenda[Registro],0)),\"-\")","v":1400}]
[null,{"$f":"IFERROR(INDEX(TB_Agenda[Registro],MATCH(TB_Procedimentos[[#This Row],[ID Atendimento]],TB_Agenda[ID Atendimento],0)),\"-\")","v":30},"BH.5210.2804/2021",{"$f":"IFERROR(INDEX(TB_Agenda[Data],MATCH(TB_Procedimentos[[#This Row],[Registro]],TB_Agenda[Registro],0)),\"-\")","v":"2021-04-28"},{"$f":"IF(TB_Procedimentos[[#This Row],[Data]]=\"\",\"\",PROPER(TEXT(TB_Procedimentos[[#This Row],[Data]],\"DDDD\")))","v":"Quarta-Feira"},{"$f":"IFERROR(INDEX(TB_Agenda[Horário],MATCH(TB_Procedimentos[[#This Row],[Registro]],TB_Agenda[Registro],0)),\"-\")","v":1430}]
[null,{"$f":"IFERROR(INDEX(TB_Agenda[Registro],MATCH(TB_Procedimentos[[#This Row],[ID Atendimento]],TB_Agenda[ID Atendimento],0)),\"-\")","v":29},"YA.1796.2604/2021",{"$f":"IFERROR(INDEX(TB_Agenda[Data],MATCH(TB_Procedimentos[[#This Row],[Registro]],TB_Agenda[Registro],0)),\"-\")","v":"2021-04-26"},{"$f":"IF(TB_Procedimentos[[#This Row],[Data]]=\"\",\"\",PROPER(TEXT(TB_Procedimentos[[#This Row],[Data]],\"DDDD\")))","v":"Segunda-Feira"},{"$f":"IFERROR(INDEX(TB_Agenda[Horário],MATCH(TB_Procedimentos[[#This Row],[Registro]],TB_Agenda[Registro],0)),\"-\")","v":940}]
[null,{"$f":"IFERROR(INDEX(TB_Agenda[Registro],MATCH(TB_Procedimentos[[#This Row],[ID Atendimento]],TB_Agenda[ID Atendimento],0)),\"-\")","v":28},"MO.0054.2004/2021",{"$f":"IFERROR(INDEX(TB_Agenda[Data],MATCH(TB_Procedimentos[[#This Row],[Registro]],TB_Agenda[Registro],0)),\"-\")","v":"2021-04-20"},{"$f":"IF(TB_Procedimentos[[#This Row],[Data]]=\"\",\"\",PROPER(TEXT(TB_Procedimentos[[#This Row],[Data]],\"DDDD\")))","v":"Terça-Feira"},{"$f":"IFERROR(INDEX(TB_Agenda[Horário],MATCH(TB_Procedimentos[[#This Row],[Registro]],TB_Agenda[Registro],0)),\"-\")","v":1000}]
[null,{"$f":"IFERROR(INDEX(TB_Agenda[Registro],MATCH(TB_Procedimentos[[#This Row],[ID Atendimento]],TB_Agenda[ID Atendimento],0)),\"-\")","v":27},"CS.0395.2004/2021",{"$f":"IFERROR(INDEX(TB_Agenda[Data],MATCH(TB_Procedimentos[[#This Row],[Registro]],TB_Agenda[Registro],0)),\"-\")","v":"2021-04-20"},{"$f":"IF(TB_Procedimentos[[#This Row],[Data]]=\"\",\"\",PROPER(TEXT(TB_Procedimentos[[#This Row],[Data]],\"DDDD\")))","v":"Terça-Feira"},{"$f":"IFERROR(INDEX(TB_Agenda[Horário],MATCH(TB_Procedimentos[[#This Row],[Registro]],TB_Agenda[Registro],0)),\"-\")","v":930}]
[null,{"$f":"IFERROR(INDEX(TB_Agenda[Registro],MATCH(TB_Procedimentos[[#This Row],[ID Atendimento]],TB_Agenda[ID Atendimento],0)),\"-\")","v":26},"MM.4966.1904/2021",{"$f":"IFERROR(INDEX(TB_Agenda[Data],MATCH(TB_Procedimentos[[#This Row],[Registro]],TB_Agenda[Registro],0)),\"-\")","v":"2021-04-19"},{"$f":"IF(TB_Procedimentos[[#This Row],[Data]]=\"\",\"\",PROPER(TEXT(TB_Procedimentos[[#This Row],[Data]],\"DDDD\")))","v":"Segunda-Feira"},{"$f":"IFERROR(INDEX(TB_Agenda[Horário],MATCH(TB_Procedimentos[[#This Row],[Registro]],TB_Agenda[Registro],0)),\"-\")","v":1000}]
[null,{"$f":"IFERROR(INDEX(TB_Agenda[Registro],MATCH(TB_Procedimentos[[#This Row],[ID Atendimento]],TB_Agenda[ID Atendimento],0)),\"-\")","v":25},"YA.1796.1904/2021",{"$f":"IFERROR(INDEX(TB_Agenda[Data],MATCH(TB_Procedimentos[[#This Row],[Registro]],TB_Agenda[Registro],0)),\"-\")","v":"2021-04-19"},{"$f":"IF(TB_Procedimentos[[#This Row],[Data]]=\"\",\"\",PROPER(TEXT(TB_Procedimentos[[#This Row],[Data]],\"DDDD\")))","v":"Segunda-Feira"},{"$f":"IFERROR(INDEX(TB_Agenda[Horário],MATCH(TB_Procedimentos[[#This Row],[Registro]],TB_Agenda[Registro],0)),\"-\")","v":930}]
[null,{"$f":"IFERROR(INDEX(TB_Agenda[Registro],MATCH(TB_Procedimentos[[#This Row],[ID Atendimento]],TB_Agenda[ID Atendimento],0)),\"-\")","v":24},"JM.2697.1404/2021",{"$f":"IFERROR(INDEX(TB_Agenda[Data],MATCH(TB_Procedimentos[[#This Row],[Registro]],TB_Agenda[Registro],0)),\"-\")","v":"2021-04-14"},{"$f":"IF(TB_Procedimentos[[#This Row],[Data]]=\"\",\"\",PROPER(TEXT(TB_Procedimentos[[#This Row],[Data]],\"DDDD\")))","v":"Quarta-Feira"},{"$f":"IFERROR(INDEX(TB_Agenda[Horário],MATCH(TB_Procedimentos[[#This Row],[Registro]],TB_Agenda[Registro],0)),\"-\")","v":1600}]
[null,{"$f":"IFERROR(INDEX(TB_Agenda[Registro],MATCH(TB_Procedimentos[[#This Row],[ID Atendimento]],TB_Agenda[ID Atendimento],0)),\"-\")","v":23},"GM.3106.1404/2021",{"$f":"IFERROR(INDEX(TB_Agenda[Data],MATCH(TB_Procedimentos[[#This Row],[Registro]],TB_Agenda[Registro],0)),\"-\")","v":"2021-04-14"},{"$f":"IF(TB_Procedimentos[[#This Row],[Data]]=\"\",\"\",PROPER(TEXT(TB_Procedimentos[[#This Row],[Data]],\"DDDD\")))","v":"Quarta-Feira"},{"$f":"IFERROR(INDEX(TB_Agenda[Horário],MATCH(TB_Procedimentos[[#This Row],[Registro]],TB_Agenda[Registro],0)),\"-\")","v":1400}]
[null,{"$f":"IFERROR(INDEX(TB_Agenda[Registro],MATCH(TB_Procedimentos[[#This Row],[ID Atendimento]],TB_Agenda[ID Atendimento],0)),\"-\")","v":22},"CS.0395.1304/2021",{"$f":"IFERROR(INDEX(TB_Agenda[Data],MATCH(TB_Procedimentos[[#This Row],[Registro]],TB_Agenda[Registro],0)),\"-\")","v":"2021-04-13"},{"$f":"IF(TB_Procedimentos[[#This Row],[Data]]=\"\",\"\",PROPER(TEXT(TB_Procedimentos[[#This Row],[Data]],\"DDDD\")))","v":"Terça-Feira"},{"$f":"IFERROR(INDEX(TB_Agenda[Horário],MATCH(TB_Procedimentos[[#This Row],[Registro]],TB_Agenda[Registro],0)),\"-\")","v":1400}]
[null,{"$f":"IFERROR(INDEX(TB_Agenda[Registro],MATCH(TB_Procedimentos[[#This Row],[ID Atendimento]],TB_Agenda[ID Atendimento],0)),\"-\")","v":21},"SL.6857.1204/2021",{"$f":"IFERROR(INDEX(TB_Agenda[Data],MATCH(TB_Procedimentos[[#This Row],[Registro]],TB_Agenda[Registro],0)),\"-\")","v":"2021-04-12"},{"$f":"IF(TB_Procedimentos[[#This Row],[Data]]=\"\",\"\",PROPER(TEXT(TB_Procedimentos[[#This Row],[Data]],\"DDDD\")))","v":"Segunda-Feira"},{"$f":"IFERROR(INDEX(TB_Agenda[Horário],MATCH(TB_Procedimentos[[#This Row],[Registro]],TB_Agenda[Registro],0)),\"-\")","v":1430}]
[null,{"$f":"IFERROR(INDEX(TB_Agenda[Registro],MATCH(TB_Procedimentos[[#This Row],[ID Atendimento]],TB_Agenda[ID Atendimento],0)),\"-\")","v":20},"AS.1804.0704/2021",{"$f":"IFERROR(INDEX(TB_Agenda[Data],MATCH(TB_Procedimentos[[#This Row],[Registro]],TB_Agenda[Registro],0)),\"-\")","v":"2021-04-07"},{"$f":"IF(TB_Procedimentos[[#This Row],[Data]]=\"\",\"\",PROPER(TEXT(TB_Procedimentos[[#This Row],[Data]],\"DDDD\")))","v":"Quarta-Feira"},{"$f":"IFERROR(INDEX(TB_Agenda[Horário],MATCH(TB_Procedimentos[[#This Row],[Registro]],TB_Agenda[Registro],0)),\"-\")","v":1430}]
[null,{"$f":"IFERROR(INDEX(TB_Agenda[Registro],MATCH(TB_Procedimentos[[#This Row],[ID Atendimento]],TB_Agenda[ID Atendimento],0)),\"-\")","v":19},"CS.0395.2603/2021",{"$f":"IFERROR(INDEX(TB_Agenda[Data],MATCH(TB_Procedimentos[[#This Row],[Registro]],TB_Agenda[Registro],0)),\"-\")","v":"2021-03-26"},{"$f":"IF(TB_Procedimentos[[#This Row],[Data]]=\"\",\"\",PROPER(TEXT(TB_Procedimentos[[#This Row],[Data]],\"DDDD\")))","v":"Sexta-Feira"},{"$f":"IFERROR(INDEX(TB_Agenda[Horário],MATCH(TB_Procedimentos[[#This Row],[Registro]],TB_Agenda[Registro],0)),\"-\")","v":930}]
[null,{"$f":"IFERROR(INDEX(TB_Agenda[Registro],MATCH(TB_Procedimentos[[#This Row],[ID Atendimento]],TB_Agenda[ID Atendimento],0)),\"-\")","v":17},"MO.0054.0903/2021",{"$f":"IFERROR(INDEX(TB_Agenda[Data],MATCH(TB_Procedimentos[[#This Row],[Registro]],TB_Agenda[Registro],0)),\"-\")","v":"2021-03-09"},{"$f":"IF(TB_Procedimentos[[#This Row],[Data]]=\"\",\"\",PROPER(TEXT(TB_Procedimentos[[#This Row],[Data]],\"DDDD\")))","v":"Terça-Feira"},{"$f":"IFERROR(INDEX(TB_Agenda[Horário],MATCH(TB_Procedimentos[[#This Row],[Registro]],TB_Agenda[Registro],0)),\"-\")","v":1500}]
[null,{"$f":"IFERROR(INDEX(TB_Agenda[Registro],MATCH(TB_Procedimentos[[#This Row],[ID Atendimento]],TB_Agenda[ID Atendimento],0)),\"-\")","v":16},"MM.4966.0903/2021",{"$f":"IFERROR(INDEX(TB_Agenda[Data],MATCH(TB_Procedimentos[[#This Row],[Registro]],TB_Agenda[Registro],0)),\"-\")","v":"2021-03-09"},{"$f":"IF(TB_Procedimentos[[#This Row],[Data]]=\"\",\"\",PROPER(TEXT(TB_Procedimentos[[#This Row],[Data]],\"DDDD\")))","v":"Terça-Feira"},{"$f":"IFERROR(INDEX(TB_Agenda[Horário],MATCH(TB_Procedimentos[[#This Row],[Registro]],TB_Agenda[Registro],0)),\"-\")","v":1400}]
[null,{"$f":"IFERROR(INDEX(TB_Agenda[Registro],MATCH(TB_Procedimentos[[#This Row],[ID Atendimento]],TB_Agenda[ID Atendimento],0)),\"-\")","v":15},"MO.0054.0503/2021",{"$f":"IFERROR(INDEX(TB_Agenda[Data],MATCH(TB_Procedimentos[[#This Row],[Registro]],TB_Agenda[Registro],0)),\"-\")","v":"2021-03-05"},{"$f":"IF(TB_Procedimentos[[#This Row],[Data]]=\"\",\"\",PROPER(TEXT(TB_Procedimentos[[#This Row],[Data]],\"DDDD\")))","v":"Sexta-Feira"},{"$f":"IFERROR(INDEX(TB_Agenda[Horário],MATCH(TB_Procedimentos[[#This Row],[Registro]],TB_Agenda[Registro],0)),\"-\")","v":1400}]
[null,{"$f":"IFERROR(INDEX(TB_Agenda[Registro],MATCH(TB_Procedimentos[[#This Row],[ID Atendimento]],TB_Agenda[ID Atendimento],0)),\"-\")","v":14},"JA.9570.2602/2021",{"$f":"IFERROR(INDEX(TB_Agenda[Data],MATCH(TB_Procedimentos[[#This Row],[Registro]],TB_Agenda[Registro],0)),\"-\")","v":"2021-02-26"},{"$f":"IF(TB_Procedimentos[[#This Row],[Data]]=\"\",\"\",PROPER(TEXT(TB_Procedimentos[[#This Row],[Data]],\"DDDD\")))","v":"Sexta-Feira"},{"$f":"IFERROR(INDEX(TB_Agenda[Horário],MATCH(TB_Procedimentos[[#This Row],[Registro]],TB_Agenda[Registro],0)),\"-\")","v":900}]
[null,{"$f":"IFERROR(INDEX(TB_Agenda[Registro],MATCH(TB_Procedimentos[[#This Row],[ID Atendimento]],TB_Agenda[ID Atendimento],0)),\"-\")","v":13},"BM.0005.2302/2021",{"$f":"IFERROR(INDEX(TB_Agenda[Data],MATCH(TB_Procedimentos[[#This Row],[Registro]],TB_Agenda[Registro],0)),\"-\")","v":"2021-02-23"},{"$f":"IF(TB_Procedimentos[[#This Row],[Data]]=\"\",\"\",PROPER(TEXT(TB_Procedimentos[[#This Row],[Data]],\"DDDD\")))","v":"Terça-Feira"},{"$f":"IFERROR(INDEX(TB_Agenda[Horário],MATCH(TB_Procedimentos[[#This Row],[Registro]],TB_Agenda[Registro],0)),\"-\")","v":1430}]
[null,{"$f":"IFERROR(INDEX(TB_Agenda[Registro],MATCH(TB_Procedimentos[[#This Row],[ID Atendimento]],TB_Agenda[ID Atendimento],0)),\"-\")","v":12},"CP.5349.1702/2021",{"$f":"IFERROR(INDEX(TB_Agenda[Data],MATCH(TB_Procedimentos[[#This Row],[Registro]],TB_Agenda[Registro],0)),\"-\")","v":"2021-02-17"},{"$f":"IF(TB_Procedimentos[[#This Row],[Data]]=\"\",\"\",PROPER(TEXT(TB_Procedimentos[[#This Row],[Data]],\"DDDD\")))","v":"Quarta-Feira"},{"$f":"IFERROR(INDEX(TB_Agenda[Horário],MATCH(TB_Procedimentos[[#This Row],[Registro]],TB_Agenda[Registro],0)),\"-\")","v":1600}]
[null,{"$f":"IFERROR(INDEX(TB_Agenda[Registro],MATCH(TB_Procedimentos[[#This Row],[ID Atendimento]],TB_Agenda[ID Atendimento],0)),\"-\")","v":11},"BM.0005.1702/2021",{"$f":"IFERROR(INDEX(TB_Agenda[Data],MATCH(TB_Procedimentos[[#This Row],[Registro]],TB_Agenda[Registro],0)),\"-\")","v":"2021-02-17"},{"$f":"IF(TB_Procedimentos[[#This Row],[Data]]=\"\",\"\",PROPER(TEXT(TB_Procedimentos[[#This Row],[Data]],\"DDDD\")))","v":"Quarta-Feira"},{"$f":"IFERROR(INDEX(TB_Agenda[Horário],MATCH(TB_Procedimentos[[#This Row],[Registro]],TB_Agenda[Registro],0)),\"-\")","v":1400}]
[null,{"$f":"IFERROR(INDEX(TB_Agenda[Registro],MATCH(TB_Procedimentos[[#This Row],[ID Atendimento]],TB_Agenda[ID Atendimento],0)),\"-\")","v":10},"CP.5349.1202/2021",{"$f":"IFERROR(INDEX(TB_Agenda[Data],MATCH(TB_Procedimentos[[#This Row],[Registro]],TB_Agenda[Registro],0)),\"-\")","v":"2021-02-12"},{"$f":"IF(TB_Procedimentos[[#This Row],[Data]]=\"\",\"\",PROPER(TEXT(TB_Procedimentos[[#This Row],[Data]],\"DDDD\")))","v":"Sexta-Feira"},{"$f":"IFERROR(INDEX(TB_Agenda[Horário],MATCH(TB_Procedimentos[[#This Row],[Registro]],TB_Agenda[Registro],0)),\"-\")","v":0}]
[null,{"$f":"IFERROR(INDEX(TB_Agenda[Registro],MATCH(TB_Procedimentos[[#This Row],[ID Atendimento]],TB_Agenda[ID Atendimento],0)),\"-\")","v":9},"BL.1006.1002/2021",{"$f":"IFERROR(INDEX(TB_Agenda[Data],MATCH(TB_Procedimentos[[#This Row],[Registro]],TB_Agenda[Registro],0)),\"-\")","v":"2021-02-10"},{"$f":"IF(TB_Procedimentos[[#This Row],[Data]]=\"\",\"\",PROPER(TEXT(TB_Procedimentos[[#This Row],[Data]],\"DDDD\")))","v":"Quarta-Feira"},{"$f":"IFERROR(INDEX(TB_Agenda[Horário],MATCH(TB_Procedimentos[[#This Row],[Registro]],TB_Agenda[Registro],0)),\"-\")","v":1600}]
[null,{"$f":"IFERROR(INDEX(TB_Agenda[Registro],MATCH(TB_Procedimentos[[#This Row],[ID Atendimento]],TB_Agenda[ID Atendimento],0)),\"-\")","v":8},"BM.0005.1002/2021",{"$f":"IFERROR(INDEX(TB_Agenda[Data],MATCH(TB_Procedimentos[[#This Row],[Registro]],TB_Agenda[Registro],0)),\"-\")","v":"2021-02-10"},{"$f":"IF(TB_Procedimentos[[#This Row],[Data]]=\"\",\"\",PROPER(TEXT(TB_Procedimentos[[#This Row],[Data]],\"DDDD\")))","v":"Quarta-Feira"},{"$f":"IFERROR(INDEX(TB_Agenda[Horário],MATCH(TB_Procedimentos[[#This Row],[Registro]],TB_Agenda[Registro],0)),\"-\")","v":1530}]
[null,{"$f":"IFERROR(INDEX(TB_Agenda[Registro],MATCH(TB_Procedimentos[[#This Row],[ID Atendimento]],TB_Agenda[ID Atendimento],0)),\"-\")","v":7},"GM.3106.1002/2021",{"$f":"IFERROR(INDEX(TB_Agenda[Data],MATCH(TB_Procedimentos[[#This Row],[Registro]],TB_Agenda[Registro],0)),\"-\")","v":"2021-02-10"},{"$f":"IF(TB_Procedimentos[[#This Row],[Data]]=\"\",\"\",PROPER(TEXT(TB_Procedimentos[[#This Row],[Data]],\"DDDD\")))","v":"Quarta-Feira"},{"$f":"IFERROR(INDEX(TB_Agenda[Horário],MATCH(TB_Procedimentos[[#This Row],[Registro]],TB_Agenda[Registro],0)),\"-\")","v":1430}]
[null,{"$f":"IFERROR(INDEX(TB_Agenda[Registro],MATCH(TB_Procedimentos[[#This Row],[ID Atendimento]],TB_Agenda[ID Atendimento],0)),\"-\")","v":6},"ML.3898.1002/2021",{"$f":"IFERROR(INDEX(TB_Agenda[Data],MATCH(TB_Procedimentos[[#This Row],[Registro]],TB_Agenda[Registro],0)),\"-\")","v":"2021-02-10"},{"$f":"IF(TB_Procedimentos[[#This Row],[Data]]=\"\",\"\",PROPER(TEXT(TB_Procedimentos[[#This Row],[Data]],\"DDDD\")))","v":"Quarta-Feira"},{"$f":"IFERROR(INDEX(TB_Agenda[Horário],MATCH(TB_Procedimentos[[#This Row],[Registro]],TB_Agenda[Registro],0)),\"-\")","v":1400}]
[null,{"$f":"IFERROR(INDEX(TB_Agenda[Registro],MATCH(TB_Procedimentos[[#This Row],[ID Atendimento]],TB_Agenda[ID Atendimento],0)),\"-\")","v":5},"ML.3898.0302/2021",{"$f":"IFERROR(INDEX(TB_Agenda[Data],MATCH(TB_Procedimentos[[#This Row],[Registro]],TB_Agenda[Registro],0)),\"-\")","v":"2021-02-03"},{"$f":"IF(TB_Procedimentos[[#This Row],[Data]]=\"\",\"\",PROPER(TEXT(TB_Procedimentos[[#This Row],[Data]],\"DDDD\")))","v":"Quarta-Feira"},{"$f":"IFERROR(INDEX(TB_Agenda[Horário],MATCH(TB_Procedimentos[[#This Row],[Registro]],TB_Agenda[Registro],0)),\"-\")","v":1430}]
[null,{"$f":"IFERROR(INDEX(TB_Agenda[Registro],MATCH(TB_Procedimentos[[#This Row],[ID Atendimento]],TB_Agenda[ID Atendimento],0)),\"-\")","v":4},"MN.6357.1801/2021",{"$f":"IFERROR(INDEX(TB_Agenda[Data],MATCH(TB_Procedimentos[[#This Row],[Registro]],TB_Agenda[Registro],0)),\"-\")","v":"2021-01-18"},{"$f":"IF(TB_Procedimentos[[#This Row],[Data]]=\"\",\"\",PROPER(TEXT(TB_Procedimentos[[#This Row],[Data]],\"DDDD\")))","v":"Segunda-Feira"},{"$f":"IFERROR(INDEX(TB_Agenda[Horário],MATCH(TB_Procedimentos[[#This Row],[Registro]],TB_Agenda[Registro],0)),\"-\")","v":1500}]
[null,{"$f":"IFERROR(INDEX(TB_Agenda[Registro],MATCH(TB_Procedimentos[[#This Row],[ID Atendimento]],TB_Agenda[ID Atendimento],0)),\"-\")","v":2},"GM.3106.1201/2021",{"$f":"IFERROR(INDEX(TB_Agenda[Data],MATCH(TB_Procedimentos[[#This Row],[Registro]],TB_Agenda[Registro],0)),\"-\")","v":"2021-01-12"},{"$f":"IF(TB_Procedimentos[[#This Row],[Data]]=\"\",\"\",PROPER(TEXT(TB_Procedimentos[[#This Row],[Data]],\"DDDD\")))","v":"Terça-Feira"},{"$f":"IFERROR(INDEX(TB_Agenda[Horário],MATCH(TB_Procedimentos[[#This Row],[Registro]],TB_Agenda[Registro],0)),\"-\")","v":1430}]
[null,{"$f":"IFERROR(INDEX(TB_Agenda[Registro],MATCH(TB_Procedimentos[[#This Row],[ID Atendimento]],TB_Agenda[ID Atendimento],0)),\"-\")","v":1},"MO.0054.1101/2021",{"$f":"IFERROR(INDEX(TB_Agenda[Data],MATCH(TB_Procedimentos[[#This Row],[Registro]],TB_Agenda[Registro],0)),\"-\")","v":"2021-01-11"},{"$f":"IF(TB_Procedimentos[[#This Row],[Data]]=\"\",\"\",PROPER(TEXT(TB_Procedimentos[[#This Row],[Data]],\"DDDD\")))","v":"Segunda-Feira"},{"$f":"IFERROR(INDEX(TB_Agenda[Horário],MATCH(TB_Procedimentos[[#This Row],[Registro]],TB_Agenda[Registro],0)),\"-\")","v":1500}]